Cogmind - Beta 10.1 @@@ ROGUE MODE // 2020.10.18 @ 14:32:54 Player: NoNeedToExplain Result: Self-destructed Performance ------------- Evolutions (1) 500 Regions Visited (2) 400 Robots Destroyed (14) 70 Value Destroyed (316) 316 Prototype IDs (2) 40 Alien Tech Used (0) 0 Bonus (0) 0 TOTAL SCORE: 1326 Bonus ------- None Cogmind --------- Core Integrity 17/400 Matter 300/300 Energy 234/265 System Corruption 0% Temperature Cool (0) Movement Rolling (110) Ox1 Location -9/Materials Parts ------- > --- POWER (1) -------- Improved Ion Engine > --- PROPULSION (2) --- Compact Wheel Compact Wheel > --- UTILITY (4) ------ Medium Storage Unit High-capacity Storage Unit > --- WEAPON (2) ------- Hammer > --- INVENTORY (16) --- Aluminum Leg Aluminum Leg Compact Wheel Small Storage Unit Medium Storage Unit High-capacity Storage Unit High-capacity Storage Unit High-capacity Storage Unit High-capacity Battery (400) Signal Interpreter Particle Gun Light Assault Rifle Peak State ------------ > --- POWER ------------ Ion Engine > --- PROPULSION ------- Wheel Compact Wheel > --- UTILITY ---------- Medium Storage Unit High-capacity Storage Unit Weight Redist. System Hardened Light Armor Plating > --- WEAPON ----------- Small Laser Light Assault Rifle > --- INVENTORY -------- Aluminum Leg Aluminum Leg Compact Wheel Compact Wheel Compact Wheel Small Storage Unit Medium Storage Unit High-capacity Storage Unit High-capacity Storage Unit High-capacity Storage Unit High-capacity Battery Signal Interpreter Hammer Mining Claw [Rating: 12] Favorites ----------- Power Ion Engine Engine Ion Engine Propulsion Compact Wheel Leg Aluminum Leg Wheel Compact Wheel Utility High-capacity Storage Unit Device Weight Redist. System Storage High-capacity Storage Unit Protection Hardened Light Armor Plating Weapon Assault Rifle Energy Gun EM Pulse Gun Ballistic Gun Assault Rifle Impact Weapon Hammer Slashing Weapon Mining Claw Build | -11 -10 -9 ------- Run | Scr Mat Mat Slots Evolved 2 | . . 2 Power . | . . . Propulsion . | . . . Utility 2 | . . 2 Weapon . | . . . Parts Attached 27 | 7 10 10 Power 3 | 1 1 1 Engine 3 | 1 1 1 Core . | . . . Reactor . | . . . Propulsion 10 | 2 5 3 Treads . | . . . Leg 2 | . 2 . Wheel 8 | 2 3 3 Hover . | . . . Flight . | . . . Utility 8 | 2 2 4 Device 2 | . . 2 Storage 5 | 2 2 1 Processor . | . . . Hackware . | . . . Protection 1 | . . 1 Artifact . | . . . Weapon 6 | 2 2 2 Energy Gun 2 | 1 1 . Energy Cannon . | . . . Ballistic Gun 2 | 1 1 . Ballistic Cannon . | . . . Launcher . | . . . Special Weapon . | . . . Impact Weapon 1 | . . 1 Slashing Weapon 1 | . . 1 Piercing Weapon . | . . . Special Melee Weapon . | . . . Unidentified Prototypes . | . . . Parts Lost 12 | . 4 8 Power 2 | . 1 1 Propulsion 4 | . 1 3 Utility 2 | . . 2 Weapon 4 | . 2 2 Highest Loss Streak 7 | . 2 7 Average Slot Usage (%) 93 | . 100 86 Engine 11 | . 14 9 Leg 1 | . 2 . Wheel 23 | . 25 21 Device 2 | . . 6 Storage 26 | . 28 23 Protection 2 | . . 4 Energy Gun 9 | . 12 5 Ballistic Gun 11 | . 15 5 Impact Weapon 2 | . . 5 Slashing Weapon 1 | . . 4 Naked Turns . | . . . Heaviest Build 54 | 17 49 54 Greatest Support 38 | 32 32 38 Greatest Overweight (x) 1 | . 1 1 Average Overweight (x) . | . . 1 Largest Inventory Capacity 16 | 8 16 16 Average Capacity 14 | 5 15 16 Most Carried 16 | 4 9 16 Average Carried 9 | 3 7 12 Final Capacity 16 | 8 16 16 Final Carried 12 | 4 6 12 Class Distribution -------------------- 100% | Mutant Dominant Class ---------------- Mutant | -10/Materials Mutant | -9/Materials Resources | -11 -10 -9 ----------- Run | Scr Mat Mat Matter Collected 485 | 258 115 112 Remotely . | . . . Salvage Created 528 | 52 207 269 Parts 23 | 1 10 12 Haulers Intercepted 2 | . 1 1 Recyclers Shooed . | . . . Parts Field Recycled . | . . . Retrieved Matter . | . . . Parts Self-Destructed . | . . . Prevented . | . . . Kills | -11 -10 -9 ------- Run | Scr Mat Mat Combat Hostiles Destroyed 10 | . 5 5 Melee 3 | . . 3 Guns 5 | . 5 . AOE 1 | . . 1 Classes Destroyed 6 | 1 4 1 Worker 1 | . 1 . Hauler 2 | . 1 1 Recycler 1 | 1 . . Swarmer 3 | . 3 . Grunt 6 | . 2 4 Sentry 1 | . . 1 Best Kill Streak 4 | 1 4 2 Combat Bots Only 3 | . 3 2 Max Kills in Single Turn 2 | 1 2 1 Gunslinging 1 | . 1 . Exploded 1 | . . 1 Melee 1 | . . 1 Uniques/NPCs Destroyed . | . . . Combat | -11 -10 -9 -------- Run | Scr Mat Mat Damage Taken 1721 | 30 586 1105 Core 520 | . 137 383 Absorbed by Shields . | . . . Core Remaining (%) 72 | 100 45 . Volleys Fired 27 | 2 21 4 Largest 2 | 2 2 2 Hottest 60 | 60 60 60 Shots Fired 54 | 4 42 8 Gun 54 | 4 42 8 Cannon . | . . . Launcher . | . . . Special . | . . . Kinetic 28 | 2 22 4 Thermal 9 | . 5 4 Explosive . | . . . Electromagnetic 17 | 2 15 . Robot Hit Streak 13 | 4 13 4 Robot Miss Streak 2 | . 2 1 Penetration Max . | . . . Secondary Targets 1 | . 1 . Max Gunslinging Chain 1 | . 1 . Shots Hit Robots 71 | 4 31 36 Core Hits 21 | 1 11 9 Critical Hits . | . . . Critical Kills . | . . . Critical Parts Destroyed . | . . . Melee Attacks 34 | . . 34 Impact 31 | . . 31 Slashing 3 | . . 3 Piercing . | . . . Sneak Attacks . | . . . Combat Hostiles . | . . . Follow-up Attacks 3 | . . 3 Damage Inflicted 1041 | 92 428 521 Guns 429 | 50 331 48 Cannons . | . . . Explosions 139 | 42 97 . Melee 473 | . . 473 Ramming . | . . . Kinetic 182 | 25 142 15 Thermal 205 | 42 130 33 Explosive . | . . . Electromagnetic 181 | 25 156 . Impact 426 | . . 426 Slashing 47 | . . 47 Piercing . | . . . Highest Corruption . | . . . Average Corruption . | . . . Corruption Purged . | . . . Overload Shots . | . . . Overflow Damage 45 | 2 21 22 Projectiles . | . . . Explosions 23 | 2 21 . Melee 22 | . . 22 Knockbacks 2 | . . 2 Impact 2 | . . 2 Kinetic . | . . . Secondary . | . . . Self-Inflicted Damage 93 | 31 62 . Shots 3 | 1 2 . Rammed 1 | . 1 . Targets Rammed 1 | . 1 . Kicked . | . . . Crushed . | . . . Highest Temperature 60 | 12 60 14 Average Temperature 25 | 12 29 10 Received Heat Transfer 606 | . 201 405 Siege Activations . | . . . Robots Corrupted . | . . . Combat Hostiles . | . . . Parts Fried 1 | . . 1 Impact Corruptions 3 | . . 3 Robots Melted . | . . . Combat Hostiles . | . . . Parts Melted . | . . . Heat Transferred 350 | 50 225 75 Parts Sabotaged . | . . . Parts Stolen . | . . . Parts Stripped . | . . . Power Chain Reactions 3 | 1 2 . Missiles Intercepted . | . . . Alert | -11 -10 -9 ------- Run | Scr Mat Mat Peak Influence 115 | 5 115 115 Initial 3 | . 3 . Average 34 | 1 34 40 Maximum Alert Level . | . . . Low Security (%) 100 | 100 100 100 Level 1 . | . . . Level 2 . | . . . Level 3 . | . . . Level 4 . | . . . Level 5 . | . . . High Security . | . . . Max Security . | . . . Squads Dispatched 4 | . 3 1 Investigation 1 | . 1 . Extermination . | . . . Reinforcement 3 | . 2 1 Assault . | . . . Garrison . | . . . Intercept . | . . . Construction Impeded . | . . . Haulers Reinforced . | . . . Stealth | -11 -10 -9 --------- Run | Scr Mat Mat Distress Signals 3 | . 2 1 Communications Jammed . | . . . Distress Signals . | . . . Times Spotted 27 | . 17 10 Peak Tracking Total 5 | . 5 4 Tactical Retreats 2 | . 1 1 Traps | -11 -10 -9 ------- Run | Scr Mat Mat Traps Triggered 2 | . 1 1 Indirectly . | . . . Trap Hack Attempts . | . . . Triggered . | . . . Disarmed . | . . . Reprogrammed . | . . . Reused . | . . . Traps Extracted . | . . . Installed . | . . . Triggered . | . . . Machines | -11 -10 -9 ---------- Run | Scr Mat Mat Machines Disabled . | . . . Max in Single Turn . | . . . Machines Sabotaged . | . . . Garrisons Compromised . | . . . Overloaded Fab Kills . | . . . Fab Network Shutdowns . | . . . Hacking | -11 -10 -9 --------- Run | Scr Mat Mat Machines Accessed 6 | . 4 2 Terminals 4 | . 3 1 Fabricators . | . . . Repair Stations . | . . . Recycling Units 2 | . 1 1 Scanalyzers . | . . . Garrison Access . | . . . Total Hacks 23 | . 14 9 Successful 10 | . 6 4 Failed 13 | . 8 5 Catastrophic 1 | . 1 . Database Lockouts . | . . . Manual 18 | . 10 8 Terminals 18 | . 10 8 Fabricators . | . . . Repair Stations . | . . . Recycling Units 5 | . 4 1 Scanalyzers . | . . . Garrison Access . | . . . Terminal Hacks 4 | . 3 1 Prototype ID Bank 1 | . 1 . Terminal Index 1 | . . 1 Unreport Threat 1 | . 1 . Zone Layout 1 | . 1 . Fabricator Hacks . | . . . Repair Station Hacks . | . . . Recycling Unit Hacks 1 | . . 1 Retrieve Components 1 | . . 1 Scanalyzer . | . . . Garrison Access Hacks . | . . . Unauthorized Hacks 5 | . 3 2 Terminals 3 | . 1 2 Track 1 | . . 1 Botnet 2 | . 1 1 Fabricators . | . . . Repair Stations . | . . . Recycling Units 2 | . 2 . Monitor 1 | . 1 . Reject 1 | . 1 . Scanalyzers . | . . . Garrison Access . | . . . Data Cores Recovered . | . . . Used . | . . . Hacking Detections 6 | . 4 2 Full Trace Events . | . . . Feedback Events . | . . . Feedback Blocked . | . . . Robot Schematics Acquired . | . . . Robots Built . | . . . Matter . | . . . Time . | . . . Total Robot Build Rating . | . . . Part Schematics Acquired . | . . . Parts Built . | . . . Matter . | . . . Time . | . . . Total Part Build Rating . | . . . Parts Repaired . | . . . Time . | . . . Parts Recycled . | . . . Recycled Matter . | . . . Retrieved Matter . | . . . Retrieved Components 2 | . . 2 Parts Scanalyzed . | . . . Part Schematics Acquired . | . . . Parts Damaged . | . . . Bothacking | -11 -10 -9 ------------ Run | Scr Mat Mat Used RIF Installer . | . . . Robots Hacked . | . . . Non-combat . | . . . Combat . | . . . Robot Hacks Applied . | . . . Relay Couplers Released . | . . . Robots Rewired . | . . . Allies Hacked . | . . . Hacks Repelled . | . . . Allies | -11 -10 -9 -------- Run | Scr Mat Mat Total Allies . | . . . Largest Group . | . . . Highest-Rated Group . | . . . Highest-Rated Ally . | . . . Total Orders . | . . . Ally Attacks . | . . . Total Damage . | . . . Kills . | . . . Allies Corrupted . | . . . Allies Melted . | . . . Intel | -11 -10 -9 ------- Run | Scr Mat Mat Robot Analysis Total . | . . . Derelict Logs Recovered . | . . . Drone Launches . | . . . Drone Recoveries . | . . . Exploration | -11 -10 -9 ------------- Run | Scr Mat Mat Turns Passed 803 | 63 409 331 Spaces Moved 540 | 43 285 212 Core 1 | 1 . . Treads . | . . . Legs . | . . . Wheels 539 | 42 285 212 Hover . | . . . Flight . | . . . Fastest Speed 50 | 50 100 100 Average Speed 104 | 98 108 100 Slowest Speed 110 | 100 110 110 Overloaded Moves . | . . . Propulsion Burnouts . | . . . Robots Hopped . | . . . Cave-ins Triggered . | . . . Exploration Rate (%) 27 | 3 58 22 Regions Visited 2 Branch Regions . Pre-discovered Areas . | . . . Known Exits Taken . | . . . Unknown Exits Taken 2 | 1 1 . Scrap Searched . | . . . Spaces Dug . | . . . Terrain Destroyed 5 | . 5 . Melee . | . . . Projectile . | . . . AOE 5 | . 5 . Terrain Rammed . | . . . Walls Destroyed . | . . . Machines Disabled . | . . . Actions | -11 -10 -9 --------- Run | Scr Mat Mat Total 668 | 55 340 273 Wait 22 | . 18 4 Move 538 | 42 284 212 Hop . | . . . Pick Up 19 | 4 5 10 Fast Attach 11 | 7 1 3 Attach 10 | . 4 6 Detach 2 | . . 2 Swap 6 | . 5 1 Drop 1 | . 1 . Fire 27 | 2 21 4 Melee 31 | . . 31 Ram 1 | . 1 . Kick . | . . . Crush . | . . . Escape Stasis . | . . . Rewire . | . . . Trap . | . . . Miscellaneous . | . . . Route ------- -11/Scrapyard -10/Materials (discovered 2 exits: *Mat x2) -9/Materials History --------- Turn | Location | Event 12 | -11/Scrapyard | Discovered new exit (range 15) 64 | -11/Scrapyard | Entered Materials 226 | -10/Materials | Discovered new exit (range 9) 303 | -10/Materials | Build established: Mutant 386 | -10/Materials | Discovered new exit (range 15) 465 | -10/Materials | Core integrity fell below 50% 473 | -10/Materials | Entered another Materials area 473 | -9/Materials | Evolved 2 slots: Utility x2 742 | -9/Materials | Core integrity fell below 50% 769 | -9/Materials | Core integrity fell below 20% 804 | -9/Materials | Self-destructed Last Messages --------------- 00784_ K-01 Serf collects debris. 00784_ U-05 Engineer builds a Wall. 00785_ U-05 Engineer lays Concrete. 00785_ G-34 Mercenary knocked back. 00786_ U-05 Engineer lays Concrete. 00787_ K-01 Serf collects debris. 00787_ U-05 Engineer lays Concrete. 00789_ G-34 Mercenary knocked back. 00789_ U-05 Engineer lays Concrete. 00790_ R-06 Scavenger collects Structural Scanner. 00791_ K-01 Serf collects debris. 00791_ U-05 Engineer lays Concrete. 00794_ K-01 Serf collects debris. 00794_ U-05 Engineer lays Concrete. 00797_ K-01 Serf collects debris. 00798_ U-05 Engineer lays Concrete. 00800_ G-34 Mercenary destroyed. 00800_ U-05 Engineer lays Concrete. 00800_ K-01 Serf collects debris. 00801_ U-05 Engineer lays Concrete. Map ----- +----------------------------------------------------+ | ???????????????????????????????? | | ???????????????????????????????? | | ???????????????????????????????? | | ???????????????????????????????? | | ???????????????????????????????? | | ???????????????????????????????? | | ???????????????????????????????? | | ???????????????????????????????? | | ???????????????????????????????? | | ???????????????????????????????? | | ???????????????????????????????? | | ???????????????????????????????? | | ???????????????????????????????? | | ???????????????????????????????? | | ???????????????????????????????? | | ???????????????????????????????? | | ???????????????????????????????? | | ???????????????????????????????? | | ???????????????????????????????? | | ??????????????+#???????????????? | | ?????????????? #???????????????? | | ?????????????? #???????????????? | | ?????????????# #???? #???????? | | ??????######## #???? #???????? | | ????###! ## #???? #???????? | | ??###; @ ;;;;; #???? #???????? | | ??# [u ;;a#???# #???????? | | ??# u ;; ##??# +???????? | | ??# ! ; #??# #???????? | | ??# %+ #??# #???????? | | ??# =%# #??# #???????? | | ??# k=# #??# #???????? | | ??# # #??# #???????? | | ??# # #??# #???????? | | ??####### ### #### ########? | | ??????####### ## | | ???# # | | ???# """ + | | ???# """ ##+######+##### | | ???# """ # # | | ???# # # | | ???# """ # = # | | ???# """ # # | | ???# """ # # | | ???# # # | | ????###/######## ### ###### | | ?????# | | ?????# %% | | ?????# """ | | ?????# ##### """ ## | +----------------------------------------------------+ Best States ------------- Heat Dissipation 28 Energy Generation 12 Energy Capacity 650 Matter Stores 300 Matter Capacity 300 Sight Range 16 Terrain Scan Density 10 Additional Mass Support 6 Armor Coverage 150 Evasion (%) 40 Item Schematics ----------------- None Robot Schematics ------------------ None Fabricated ------------ Nothing Alien Tech Used ----------------- None Achievements -------------- None Challenges ------------ None Game ------ Seed AluminumAlphaBuckler Manual? 0 Play Time 00:16:05 Cumulative 60.0 hours Start 2020.10.18 @ 14:21:44 End 2020.10.18 @ 14:32:54 Sessions 1 Manual Loads 0 Difficulty Rogue Special Mode None Game No. 39 Rogue 39 Adventurer 0 Explorer 0 Win Type - Total 5 Types 5/0/0/0/0/0/0/0/0 Lore% 34 Gallery% 49 Achievement% 45 Wizard Run 0 Options --------- ASCII 0 Keyboard 0 Movement Numpad Keybinds 0 Fullscreen 2 Font 24/Smallcaps Map View 76x50 Tactical HUD 1 Map Filters NONE Filters NONE Steam 1 RUN: 543a3cc7-3883-4d84-91b2-30453dc9e357